bitfinex-derivatives/quotes_SOLF0:USTF0_20260104
["timestamp","ask_amount","ask_price","bid_price","bid_amount"]
[1767485767698,3.94431092,134.54,134.45,192.4430658]
[1767485767999,3.89099985,134.54,134.46,0.4124658]
[1767485768805,3.94185015,134.51,134.43,0.41277965]
[1767485769192,3.89099985,134.57,134.46,2.76575609]
[1767485769503,3.89099985,134.56,134.48,7.10532404]
[1767485770198,3.89099985,134.56,134.49,6.6947]
[1767485770404,0.05449222,134.54,134.51,0.04956624]
[1767485772701,0.05449222,134.54,134.47,87.86]
[1767485772702,3.94549207,134.54,134.47,87.86]
[1767485773597,0.05449222,134.54,134.48,0.46114944]
[1767485773798,0.05449222,134.54,134.5,0.05717191]
[1767485774003,10.58109985,134.59,134.5,0.51832135]
[1767485774208,10.58109985,134.59,134.5,0.46114944]
[1767485774704,3.89099985,134.58,134.5,0.46114944]
[1767485774899,3.89099985,134.63,134.52,0.40688572]
[1767485775304,0.0478164,134.59,134.56,0.0502758]
[1767485777103,3.89099985,134.64,134.56,0.45761066]
[1767485778303,0.05361924,134.61,134.56,0.45761066]
[1767485778505,0.05361924,134.61,134.57,0.35978434]
[1767485779996,0.05361924,134.61,134.56,0.0502758]
[1767485780200,0.05361924,134.61,134.56,87.9102758]
[1767485781604,0.05361924,134.61,134.56,0.0502758]
[1767485781605,3.94461909,134.61,134.56,0.0502758]
[1767485782701,3.89099985,134.6,134.51,88.20015365]
[1767485783095,3.89099985,134.6,134.51,87.84]
[1767485783300,3.89099985,134.6,134.5,6.6942]
[1767485783497,3.89099985,134.59,134.48,88.20025095]
[1767485783706,104.0632,134.6,134.52,0.05316003]
[1767485783707,0.05595223,134.55,134.52,0.05316003]
[1767485790317,0.05595223,134.55,134.48,6.6952]
[1767485790703,0.05595223,134.55,134.48,7.10190522]
[1767485791210,3.92798682,134.55,134.46,6.6962]
[1767485791407,0.0477542,134.52,134.45,0.40670522]
[1767485791607,3.67110305,134.52,134.45,0.40670522]
[1767485792718,3.67110305,134.52,134.47,0.05592425]
[1767485793116,3.67110305,134.52,134.43,87.84]
[1767485793314,3.62334885,134.52,134.43,87.84]
[1767485793518,3.62334885,134.5,134.42,0.46314736]
[1767485793814,3.62334885,134.5,134.4,87.84]
[1767485794223,0.04703501,134.46,134.44,0.04788422]
[1767485794624,0.04703501,134.46,134.4,87.84]
[1767485795023,3.67038386,134.46,134.4,87.84]
[1767485795225,0.04703501,134.46,134.4,88.30331381]
[1767485795625,0.04703501,134.46,134.42,0.02166137]
[1767485798122,3.67038386,134.46,134.42,0.02166137]
[1767485799632,3.67038386,134.46,134.38,6.7001]
[1767485800130,3.67038386,134.46,134.37,88.34362956]
[1767485800327,3.62334885,134.46,134.37,88.34362956]
[1767485800530,91.50334885,134.49,134.38,0.46483441]
[1767485800825,0.0516585,134.45,134.38,0.46483441]
[1767485802033,0.0516585,134.45,134.38,7.16473441]
[1767485803630,0.0516585,134.45,134.39,0.4657022]
[1767485804434,0.0516585,134.45,134.39,1.67180102]
[1767485807132,3.67500735,134.45,134.38,6.6999]
[1767485807334,3.67500735,134.45,134.37,87.88]
[1767485807335,4.88110617,134.45,134.37,1.20609882]
[1767485807538,0.0516585,134.45,134.41,1.20609882]
[1767485807934,0.0516585,134.45,134.4,0.46681345]
[1767485812129,0.0516585,134.45,134.4,1.67291227]
[1767485812736,0.0516585,134.45,134.38,89.57423103]
[1767485813136,0.0516585,134.45,134.39,7.16783221]
[1767485813737,0.0516585,134.45,134.39,0.46813221]
[1767485814142,3.67500735,134.45,134.38,87.9]
[1767485814331,3.67500735,134.45,134.37,1.20609882]
[1767485815243,3.62334885,134.43,134.36,96.29568576]
[1767485815447,0.04942011,134.41,134.36,95.08958694]
[1767485816133,0.04942011,134.41,134.35,1.20609882]
[1767485816340,0.04942011,134.41,134.34,88.38913372]
[1767485816738,0.04942011,134.41,134.34,89.59523254]
[1767485817247,3.67276896,134.41,134.34,89.59523254]
[1767485817545,4.87886778,134.41,134.33,87.92]
[1767485817846,0.04841917,134.38,134.32,87.92]
[1767485818051,3.67176802,134.38,134.31,0.46937695]
[1767485820438,0.04841917,134.38,134.32,0.46841915]
[1767485820644,3.86759666,134.43,134.34,0.46841915]
[1767485820948,3.86759666,134.43,134.31,0.46841915]
[1767485821149,3.86759666,134.39,134.29,17.91820748]
[1767485821447,3.86759666,134.36,134.29,14.67683972]
[1767485821842,0.04822276,134.34,134.31,0.04841917]
[1767485823055,0.04822276,134.34,134.29,14.67683972]
[1767485823439,0.04822276,134.34,134.3,0.51751901]
[1767485823646,3.86759666,134.39,134.31,0.46929625]
[1767485824047,3.86759666,134.39,134.31,7.17279625]
[1767485824758,0.05099843,134.36,134.34,0.51774071]
[1767485825061,3.86759666,134.42,134.34,0.51774071]
[1767485825854,0.04690878,134.39,134.34,7.21984071]
[1767485827056,3.86759666,134.45,134.38,0.42304498]
[1767485827760,3.86759666,134.48,134.39,0.42325913]
[1767485827950,3.86759666,134.48,134.39,88.38325913]
[1767485828754,0.04824578,134.45,134.42,0.04793517]
[1767485829758,3.86759666,134.51,134.42,0.4713244]
[1767485829959,3.86759666,134.51,134.42,0.42338923]
[1767485830460,3.86759666,134.51,134.43,0.4235265]
[1767485830657,0.04994871,134.48,134.46,0.05088398]
[1767485831953,0.04994871,134.48,134.4,0.42366218]
[1767485832355,3.91754537,134.48,134.4,0.42366218]
[1767485833253,3.91754537,134.48,134.43,0.0474487]
[1767485833452,3.86759666,134.48,134.39,87.94]
[1767485833959,3.86759666,134.51,134.4,0.42404907]
[1767485834163,3.86759666,134.5,134.4,0.42404907]
[1767485834457,0.0482743,134.46,134.44,0.0511799]
[1767485834662,3.86759666,134.53,134.44,0.0511799]
[1767485834862,3.86759666,134.52,134.42,0.42423918]
[1767485835764,3.86759666,134.52,134.42,7.12253918]
[1767485835966,0.05375159,134.48,134.46,0.05030275]
[1767485836165,3.86759666,134.52,134.46,0.05030275]
[1767485837257,0.05347765,134.5,134.46,0.05030275]
[1767485841560,3.92107431,134.5,134.46,0.05030275]
[1767485842165,3.86759666,134.56,134.46,104.21540275]
[1767485842365,3.86759666,134.59,134.5,104.1359]
[1767485842571,3.86759666,134.62,134.52,6.6931]
[1767485842868,3.86759666,134.62,134.53,0.3722059]
[1767485843263,3.86759666,134.61,134.5,0.37237724]
[1767485843458,3.9227143,134.59,134.5,0.37237724]
[1767485843663,3.86759666,134.59,134.5,0.37237724]
[1767485844265,3.86759666,134.65,134.54,0.42073807]
[1767485844459,3.86759666,134.68,134.58,0.42073807]
[1767485844667,3.86759666,134.68,134.58,0.4741748]
[1767485844668,10.55339666,134.68,134.58,0.4741748]
[1767485844865,3.86759666,134.67,134.55,4.91953327]
[1767485845066,3.86759666,134.65,134.55,0.42073807]
[1767485845460,3.86759666,134.65,134.56,0.42090549]
[1767485845660,0.05645067,134.62,134.56,0.42090549]
[1767485845864,3.92404733,134.62,134.53,0.42090549]
[1767485846170,3.86759666,134.62,134.53,0.42090549]
[1767485846372,3.86759666,134.62,134.53,7.11350549]
[1767485846769,3.86759666,134.65,134.55,0.46838447]
[1767485846972,3.86759666,134.65,134.59,0.05595439]
[1767485846973,0.04843984,134.61,134.59,0.05595439]
[1767485847173,3.86759666,134.65,134.59,0.05595439]
[1767485848276,3.86759666,134.64,134.53,0.46875862]
[1767485848773,3.86759666,134.63,134.53,0.46875862]
[1767485849173,3.86759666,134.63,134.52,87.88]
[1767485849372,0.05232317,134.59,134.56,0.05394017]
[1767485850576,3.64678535,134.67,134.56,0.52197992]
[1767485850770,3.64678535,134.67,134.56,0.46803975]
[1767485851077,3.64678535,134.66,134.56,7.15933975]
[1767485851581,3.64678535,134.66,134.53,126.4592]
[1767485851582,0.0548931,134.62,134.53,0.46825648]
[1767485851772,3.94230051,134.62,134.53,88.32825648]
[1767485851968,0.0500314,134.59,134.56,0.05330926]
[1767485852866,0.0500314,134.59,134.53,87.86]
[1767485853969,0.0500314,134.59,134.55,0.05685084]
[1767485856477,3.94230051,134.64,134.55,0.40504001]
[1767485856673,3.94230051,134.64,134.54,6.6923]
[1767485857075,3.94230051,134.64,134.56,0.34818917]
[1767485857279,10.62850051,134.67,134.56,0.34818917]
[1767485857483,0.0492998,134.63,134.6,0.05329114]
[1767485860071,10.62750051,134.69,134.6,0.40273145]
[1767485860273,3.94230051,134.69,134.6,0.34944031]
[1767485861278,0.05105874,134.66,134.63,0.05263916]
[1767485864479,3.99335925,134.66,134.58,94.5302]
[1767485864685,3.99335925,134.66,134.58,6.6902]
[1767485864889,3.99335925,134.66,134.57,88.17143154]
[1767485865183,3.94230051,134.66,134.57,88.17143154]
[1767485865383,3.94230051,134.66,134.58,0.40445533]
[1767485865585,0.05454413,134.63,134.6,0.05290252]
[1767485868799,3.94230051,134.66,134.6,0.05290252]
[1767485869184,10.62750051,134.69,134.6,0.05290252]
[1767485869381,10.62750051,134.69,134.59,7.09545018]
[1767485869790,0.05554619,134.65,134.63,0.04855255]
[1767485871987,0.05554619,134.65,134.59,0.40595018]
[1767485872301,0.05554619,134.65,134.57,94.96585585]
[1767485872890,0.05554619,134.65,134.6,0.04880959]
[1767485873201,3.9978467,134.65,134.57,0.45515585]
[1767485874102,3.9978467,134.65,134.6,0.04894137]
[1767485877810,0.05554619,134.65,134.6,0.5059622]
[1767485878500,3.9978467,134.65,134.6,0.04894137]
[1767485878802,0.05554619,134.65,134.6,0.04894137]
[1767485880500,0.05554619,134.65,134.6,0.4999847]
[1767485880898,3.68946638,134.71,134.61,0.45104333]
[1767485881199,3.68946638,134.71,134.62,0.45104333]
[1767485881401,3.68946638,134.68,134.56,0.45132314]
[1767485881595,103.9906,134.69,134.57,87.8]
[1767485881596,3.68946638,134.66,134.57,87.8]
[1767485882000,0.0530007,134.63,134.6,0.0558614]
[1767485882201,0.05529996,134.63,134.6,0.05256156]
[1767485884200,3.74476634,134.63,134.57,87.8]
[1767485885601,3.74476634,134.63,134.52,0.50497218]
[1767485885801,3.68946638,134.66,134.55,0.55249786]
[1767485886601,0.05461238,134.62,134.55,0.55249786]
[1767485886797,0.05461238,134.62,134.54,104.1045]
[1767485886798,0.05461238,134.62,134.59,0.05304183]
[1767485887002,10.37606638,134.66,134.59,0.05304183]
[1767485887406,3.68946638,134.65,134.59,0.05304183]
[1767485888017,0.05411742,134.63,134.59,0.05304183]
[1767485889411,3.68946638,134.68,134.59,0.60654355]
[1767485889606,3.68946638,134.68,134.59,0.55350172]
[1767485890014,3.68946638,134.68,134.59,7.24320172]
[1767485890915,0.05008046,134.65,134.62,0.05097057]
[1767485892208,3.68946638,134.71,134.62,0.55069872]
[1767485892403,3.68946638,134.71,134.62,0.49972815]
[1767485892602,3.68946638,134.71,134.62,7.18792815]
[1767485892802,3.68946638,134.71,134.62,0.49972815]
[1767485893215,0.05185867,134.68,134.65,0.05053356]
[1767485897412,3.68946638,134.67,134.58,6.69]
[1767485897607,3.68946638,134.67,134.56,0.55113568]
[1767485897918,3.68946638,134.64,134.53,0.55113568]
[1767485898221,3.68946638,134.62,134.53,7.24373568]
[1767485898617,0.04794284,134.59,134.56,0.05131565]
[1767485901009,5.21740922,134.59,134.5,0.55130025]
[1767485901209,3.68946638,134.59,134.5,0.55130025]
[1767485901918,3.68946638,134.59,134.49,94.4948]
[1767485902110,0.04777651,134.55,134.53,0.04722869]
[1767485902415,3.68946638,134.57,134.49,6.6948]
[1767485903319,0.05642591,134.54,134.52,0.05228552]
[1767485904321,0.05642591,134.54,134.48,87.8]
[1767485905313,0.05642591,134.54,134.5,0.05685199]
[1767485906422,3.68946638,134.61,134.51,0.60056163]
[1767485907624,0.048505,134.57,134.55,0.05293351]
[1767485908323,3.68946638,134.61,134.55,0.05293351]
[1767485908831,3.68946638,134.67,134.57,0.60134429]
[1767485909027,3.68946638,134.67,134.58,87.82]
[1767485909532,3.68946638,134.7,134.61,0.05432748]
[1767485909723,3.68946638,134.7,134.6,0.60151955]
[1767485909924,3.68946638,134.7,134.61,0.55717793]
[1767485910325,3.68946638,134.7,134.59,7.24704923]
[1767485910525,3.68946638,134.7,134.6,0.55734923]
[1767485910829,0.04768841,134.66,134.63,0.05439798]
[1767485913324,3.6745111,134.66,134.58,198.5809]
[1767485913524,3.6745111,134.66,134.58,199.18948325]
[1767485914334,3.6745111,134.66,134.61,0.05441524]
[1767485917336,3.62682269,134.65,134.56,7.30127918]
[1767485917537,3.62682269,134.65,134.56,6.6914]
[1767485918329,0.05498276,134.62,134.59,0.05118911]
[1767485919141,3.62682269,134.68,134.59,0.05118911]
[1767485919342,3.62682269,134.68,134.58,7.30062535]
[1767485920339,0.05099572,134.64,134.62,0.056454]
[1767485931748,0.05099572,134.64,134.58,0.61052535]
[1767485932447,0.05099572,134.64,134.58,1.81315683]
[1767485932847,0.05099572,134.64,134.6,0.05045283]
[1767485933243,3.67781841,134.64,134.6,0.05045283]
[1767485935347,3.67781841,134.64,134.57,87.8]
[1767485936348,3.67781841,134.64,134.59,0.04936201]
[1767485936844,1.20263148,134.63,134.57,87.8]
[1767485937050,3.62682269,134.62,134.56,1.20263148]
[1767485937439,3.62682269,134.62,134.54,95.15824912]
[1767485937644,3.62682269,134.62,134.54,89.00263148]
[1767485937850,0.04750804,134.59,134.57,0.0552443]
[1767485938548,3.67433073,134.59,134.54,87.8]
[1767485939651,3.67433073,134.59,134.53,1.20263148]
[1767485940454,0.04750804,134.59,134.55,1.20263148]
[1767485940753,0.04750804,134.59,134.53,0.77996599]
[1767485940949,0.04750804,134.59,134.54,1.20263148]
[1767485941152,3.90819463,134.59,134.54,1.20263148]
[1767485941361,3.90819463,134.59,134.52,1.20263148]
[1767485941852,3.86068659,134.58,134.51,87.8]
[1767485942158,3.91545423,134.56,134.5,1.20263148]
[1767485942349,3.91545423,134.56,134.48,1.20263148]
[1767485942859,3.86068659,134.52,134.42,15.45749261]
[1767485943057,3.86068659,134.52,134.44,1.20263148]
[1767485943458,0.05335366,134.49,134.44,1.20263148]
[1767485943658,0.05335366,134.49,134.43,105.02063256]
[1767485943858,3.91404025,134.49,134.43,1.20263148]
[1767485944059,3.91404025,134.49,134.42,14.67683972]
[1767485944254,0.05335366,134.49,134.45,1.98365333]
[1767485944462,0.05335366,134.49,134.45,0.78102185]
[1767485944953,0.05335366,134.49,134.42,122.4199614]
[1767485945154,0.05335366,134.49,134.43,0.78157399]
[1767485945662,0.05335366,134.49,134.44,7.47951979]
[1767485945957,0.05335366,134.49,134.45,87.82]
[1767485946155,3.86068659,134.55,134.46,0.78211979]
[1767485947264,0.04971733,134.52,134.49,0.05502414]
[1767485947653,0.04971733,134.52,134.44,104.1796]
[1767485947654,3.91040392,134.52,134.44,87.84]
[1767485948060,3.91040392,134.52,134.44,88.62486313]
[1767485949662,3.91040392,134.52,134.44,0.78486313]
[1767485949863,3.91040392,134.52,134.43,87.84]
[1767485950056,0.05678806,134.49,134.43,87.84]
[1767485950258,0.05678806,134.49,134.42,14.67683972]
[1767485950460,0.05678806,134.49,134.42,102.51683972]
[1767485950659,3.91747465,134.49,134.42,102.51683972]
[1767485951163,3.91747465,134.49,134.42,14.67683972]
[1767485952661,3.86068659,134.48,134.42,14.67683972]
[1767485955659,6.6958,134.48,134.42,14.67683972]
[1767485955964,3.86068659,134.47,134.38,0.78727613]
[1767485956166,0.04862293,134.44,134.38,0.78727613]
[1767485958771,0.04862293,134.44,134.37,3.8810403]
[1767485960361,3.90930952,134.44,134.34,3.8810403]
[1767485960569,0.05185465,134.4,134.34,3.8810403]
[1767485961881,0.05185465,134.4,134.34,10.5829403]
[1767485962066,0.05185465,134.4,134.35,3.8810403]
[1767485962868,0.05185465,134.4,134.32,28.02667694]
[1767485963081,0.05185465,134.4,134.33,3.8810403]
[1767485963277,3.91254124,134.4,134.3,3.8810403]
[1767485963578,0.0476023,134.36,134.3,3.8810403]
[1767485964175,0.0476023,134.36,134.26,3.8810403]
[1767485964176,3.90828889,134.36,134.26,3.8810403]
[1767485964373,3.90828889,134.36,134.26,91.7810403]
[1767485964374,3.86068659,134.36,134.26,91.7810403]
[1767485964573,0.04888465,134.32,134.26,91.7810403]
[1767485965075,0.04888465,134.32,134.27,3.8810403]
[1767485967674,0.04888465,134.32,134.26,87.9]
[1767485967881,0.04888465,134.32,134.25,87.92]
[1767485968578,3.90957124,134.32,134.24,3.8810403]
[1767485970277,3.84525798,134.31,134.22,87.94]
[1767485970478,0.04905345,134.28,134.22,87.94]
[1767485972187,0.04905345,134.28,134.21,3.92089409]
[1767485972389,4.09566611,134.28,134.19,87.96]
[1767485972585,0.05413011,134.25,134.2,3.89044569]
[1767485972981,4.10074277,134.25,134.17,3.89044569]
[1767485973284,0.05084627,134.22,134.17,3.89044569]
[1767485974181,4.04661266,134.28,134.19,3.89044569]
[1767485975183,0.05006445,134.25,134.22,0.04964231]
[1767485977682,4.04661266,134.29,134.22,0.04964231]
[1767485978894,10.75001266,134.32,134.22,3.940088]
[1767485979093,4.04661266,134.32,134.22,3.89044569]
[1767485979998,4.04661266,134.32,134.23,104.3442]
[1767485980297,4.04661266,134.32,134.21,88.0]
[1767485980298,0.05452312,134.29,134.26,0.04933473]
[1767485988300,4.10113578,134.29,134.21,88.0]
[1767485989303,4.10113578,134.29,134.24,0.05337561]
[1767485989600,4.04661266,134.28,134.17,10.60114569]
[1767485990003,4.04661266,134.28,134.18,3.89044569]
[1767485990400,4.04661266,134.27,134.18,10.60054569]
[1767485990794,0.05578311,134.24,134.21,0.05086869]
[1767485994797,4.04661266,134.28,134.21,3.94131438]
[1767485995195,4.04661266,134.31,134.21,3.94131438]
[1767485995396,4.04661266,134.31,134.21,3.89044569]
[1767485995797,88.04,134.33,134.24,3.89044569]
[1767485995994,0.05557017,134.3,134.27,0.05185269]
[1767485996397,4.04661266,134.34,134.27,0.05185269]
[1767485996597,4.04661266,134.34,134.27,3.94229838]
[1767485997905,0.05044046,134.32,134.27,3.94229838]
[1767485999008,10.74771266,134.37,134.27,10.64789838]
[1767485999307,10.74771266,134.37,134.27,10.59604569]
[1767485999898,4.04661266,134.36,134.27,10.59604569]
[1767486000109,0.05016115,134.33,134.27,10.59604569]
[1767486000304,4.09913113,134.33,134.24,3.67765001]
[1767486000504,4.04896998,134.36,134.25,3.67765001]
[1767486000709,4.04896998,134.36,134.26,3.67765001]
[1767486000999,4.04896998,134.36,134.27,3.67765001]
[1767486001706,0.04730517,134.33,134.27,3.67765001]
[1767486001907,0.04730517,134.33,134.29,0.05359486]
[1767486003807,0.04730517,134.33,134.29,3.73124487]
[1767486004007,4.04896998,134.39,134.29,10.43574487]
[1767486004203,4.04896998,134.39,134.29,10.38215001]
[1767486004404,4.04896998,134.39,134.3,3.67765001]
[1767486005006,0.04781854,134.36,134.33,0.04932629]
[1767486006403,0.04781854,134.36,134.28,6.7051]
[1767486006606,0.04781854,134.36,134.28,98.40275001]
[1767486007703,0.04781854,134.36,134.29,3.67765001]
[1767486008011,0.04781854,134.36,134.31,0.05687976]
[1767486012616,4.09678852,134.36,134.31,0.05687976]
[1767486013515,4.09678852,134.36,134.26,10.38385001]
[1767486013815,4.04896998,134.35,134.27,3.67765001]
[1767486014515,0.05532477,134.32,134.27,10.38325001]
[1767486015713,0.05532477,134.32,134.28,0.05676382]
[1767486021423,4.04896998,134.4,134.3,3.67765001]
[1767486022526,0.05505936,134.36,134.34,0.04791969]
[1767486023615,4.10402934,134.36,134.29,91.67765001]
[1767486024725,4.10402934,134.36,134.31,0.05655956]
[1767486025230,0.05505936,134.36,134.31,3.73420957]
[1767486027225,4.04896998,134.39,134.31,3.73420957]
[1767486028117,0.05440207,134.36,134.31,0.05655956]
[1767486028321,4.10337205,134.36,134.32,0.05402078]
[1767486029028,4.10337205,134.36,134.28,91.65765001]
[1767486029830,10.80507205,134.36,134.28,91.65765001]
[1767486030127,10.80507205,134.36,134.31,0.04775146]
[1767486030530,4.10337205,134.36,134.31,0.04775146]
[1767486034533,3.82872102,134.35,134.26,4.01324701]
[1767486034739,3.82872102,134.35,134.26,93.20114175]
[1767486035725,0.0537658,134.32,134.29,0.05173546]
[1767486039235,10.52982102,134.37,134.3,1.20789474]
[1767486040129,0.04932212,134.35,134.32,0.04839456]
[1767486041638,3.82872102,134.33,134.22,4.01324701]
[1767486041936,3.82872102,134.31,134.22,4.01324701]
[1767486042732,3.82872102,134.31,134.25,0.05161861]
[1767486042733,0.05573347,134.28,134.25,0.05161861]
[1767486055249,3.88445449,134.28,134.25,0.05161861]
[1767486055449,3.88445449,134.28,134.2,10.72244701]
[1767486056155,3.82872102,134.27,134.2,4.01324701]
[1767486056344,0.04697193,134.25,134.2,4.01324701]
[1767486056645,0.04697193,134.25,134.18,98.74354701]
[1767486056852,0.04697193,134.25,134.18,4.01324701]
[1767486057256,3.87569295,134.25,134.18,4.01324701]
[1767486058551,0.04697193,134.25,134.18,4.01324701]
[1767486059552,3.82872102,134.31,134.21,4.01324701]
[1767486059759,3.82872102,134.31,134.22,4.01324701]
[1767486060143,3.89712452,134.3,134.22,4.01324701]
[1767486060755,0.05717443,134.27,134.25,0.04892882]
[1767486061445,3.95429895,134.27,134.19,91.94655058]
[1767486061648,3.95429895,134.27,134.19,3.90655058]
[1767486062359,3.89712452,134.25,134.16,91.94655058]
[1767486062559,3.89712452,134.24,134.16,93.15673858]
[1767486062858,0.0563421,134.22,134.18,5.11673858]
[1767486063157,3.89712452,134.26,134.19,3.90655058]
[1767486063358,3.89712452,134.27,134.2,3.90655058]
[1767486063558,5.10731252,134.26,134.19,1.210188]
[1767486064356,0.05642393,134.24,134.21,0.04736639]
[1767486071861,3.95354845,134.24,134.18,91.94655058]
[1767486072252,3.95354845,134.24,134.16,11.82783858]
[1767486072454,3.95354845,134.24,134.17,94.7706]
[1767486072667,0.05642393,134.24,134.18,3.90655058]
[1767486072961,0.05642393,134.24,134.2,0.02682237]
[1767486073763,0.05642393,134.24,134.2,88.08682237]
[1767486074061,3.95354845,134.24,134.2,88.08682237]
[1767486074451,3.95354845,134.24,134.2,0.02682237]
[1767486075161,3.95354845,134.24,134.17,88.06]
[1767486077158,3.95354845,134.24,134.16,10.61765058]
[1767486077360,3.95354845,134.24,134.15,88.06]
[1767486077361,3.89712452,134.22,134.15,88.06]
[1767486077561,0.05174181,134.2,134.15,88.06]
[1767486079061,10.60402452,134.25,134.16,3.90655058]
[1767486079561,10.60402452,134.25,134.17,3.90655058]
[1767486079960,0.0540578,134.22,134.2,0.05173695]
[1767486080165,10.60312452,134.27,134.2,0.05173695]
[1767486081163,0.0493302,134.25,134.2,0.05173695]
[1767486081465,0.0493302,134.25,134.2,3.95828753]
[1767486081961,3.89712452,134.32,134.23,1.89080519]
[1767486082274,3.89712452,134.34,134.27,5.79735577]
[1767486083158,0.04796971,134.32,134.29,0.05114245]
[1767486083360,10.59822452,134.37,134.29,90.00194764]
[1767486084166,3.89712452,134.36,134.29,90.00194764]
[1767486084364,0.04857983,134.34,134.29,88.11114245]
[1767486084867,0.04857983,134.34,134.29,0.05114245]
[1767486085365,0.04857983,134.34,134.29,3.95769303]
[1767486088162,0.04857983,134.34,134.29,91.99769303]
[1767486092959,0.04857983,134.34,134.29,3.95769303]
[1767486093163,0.04857983,134.34,134.3,88.02]
[1767486093366,0.04857983,134.34,134.29,3.95769303]
[1767486093577,0.04857983,134.34,134.3,88.02]
[1767486093775,0.04857983,134.34,134.29,3.95769303]
[1767486094372,0.04857983,134.34,134.3,88.02]
[1767486094673,0.04857983,134.34,134.29,3.95769303]
[1767486094878,0.04857983,134.34,134.3,88.02]
[1767486095977,0.04857983,134.34,134.29,3.95769303]
[1767486096164,0.04857983,134.34,134.3,88.02]
[1767486096872,0.04857983,134.34,134.31,88.02]
[1767486103378,3.75014051,134.39,134.32,3.84115147]
[1767486103879,91.81014051,134.41,134.32,3.84115147]
[1767486104079,3.75014051,134.41,134.32,3.84115147]
[1767486104277,0.04990041,134.38,134.35,0.05320434]
[1767486105279,5.28004092,134.38,134.3,3.84115147]
[1767486105578,3.75014051,134.38,134.31,88.0]
[1767486106377,0.05251797,134.36,134.33,0.04700663]
[1767486110973,0.05251797,134.36,134.29,5.72748657]
[1767486111278,0.05251797,134.36,134.3,87.98]
[1767486111279,10.50445848,134.36,134.3,87.98]
[1767486111485,10.50445848,134.36,134.29,3.84115147]
[1767486111781,10.50445848,134.36,134.29,91.82115147]
[1767486111977,0.05251797,134.36,134.31,5.72748657]
[1767486112190,3.75014051,134.4,134.32,3.84115147]
[1767486112388,3.75014051,134.36,134.26,3.84115147]
[1767486113185,0.04753647,134.32,134.3,0.05445392]
[1767486115990,3.79767698,134.32,134.24,91.84115147]
[1767486116190,3.75014051,134.32,134.24,91.84115147]
[1767486116991,0.05118581,134.29,134.27,0.0543653]
[1767486118677,0.05118581,134.29,134.24,91.84115147]
[1767486119484,0.05118581,134.29,134.24,88.0]
[1767486119785,0.05118581,134.29,134.25,0.05068461]
[1767486120789,0.05118581,134.29,134.19,260.98279603]
[1767486120790,3.86478749,134.28,134.19,260.98279603]
[1767486121088,3.86478749,134.31,134.22,3.96693002]
[1767486121997,0.04781056,134.28,134.25,0.04448252]
[1767486122993,3.91259805,134.28,134.19,260.98279603]
[1767486123193,3.86478749,134.28,134.2,91.96693002]
[1767486123400,3.86478749,134.28,134.21,3.96693002]
[1767486124195,0.04832153,134.26,134.21,3.96693002]
[1767486127502,0.04832153,134.26,134.19,91.98693002]
[1767486127698,0.04832153,134.26,134.2,3.96693002]
[1767486127893,0.04832153,134.26,134.21,3.96693002]
[1767486128989,10.56938749,134.3,134.21,3.96693002]
[1767486129189,10.56938749,134.3,134.23,3.96693002]
[1767486129602,10.56838749,134.32,134.24,91.98693002]
[1767486129794,10.56838749,134.32,134.25,3.96693002]
[1767486129795,3.86478749,134.32,134.25,3.96693002]
[1767486130297,10.56748749,134.34,134.27,4.01525155]
[1767486131101,3.86478749,134.4,134.31,3.96693002]
[1767486131402,0.05050962,134.37,134.34,0.0559389]
[1767486138304,88.02,134.42,134.35,3.96693002]
[1767486138613,3.86478749,134.42,134.35,3.96693002]
[1767486138908,3.86478749,134.42,134.34,1.20730269]
[1767486139109,3.86478749,134.42,134.35,3.96693002]
[1767486139510,0.05488893,134.4,134.35,3.96693002]
[1767486139711,0.05488893,134.4,134.36,0.04779983]
[1767486141705,10.56208749,134.45,134.36,4.01472985]
[1767486141911,3.86478749,134.45,134.4,1.20730269]
[1767486142309,3.86478749,134.43,134.36,1.20730269]
[1767486142818,0.04738528,134.41,134.38,0.05650207]
[1767486146702,6.696,134.47,134.4,5.17423271]
[1767486146898,3.86478749,134.47,134.4,5.17423271]
[1767486147911,0.05615928,134.45,134.42,0.05003366]
[1767486150107,3.7237196,134.49,134.42,5.21433885]
[1767486150907,95.90180269,134.5,134.43,3.9570025]
[1767486151112,98.4182196,134.5,134.45,0.04850287]
[1767486151404,0.04791396,134.48,134.45,0.04850287]
[1767486152514,1.20730269,134.53,134.46,3.83869674]
[1767486152714,11.90406943,134.54,134.47,5.04599943]
[1767486153715,0.05195124,134.52,134.49,0.04684406]
[1767486156427,4.05631798,134.52,134.44,3.83869674]
[1767486156618,4.00436674,134.51,134.44,3.83869674]
[1767486157422,0.04994846,134.49,134.46,0.05408144]
[1767486159625,0.04994846,134.49,134.41,3.83869674]
[1767486160715,0.04994846,134.49,134.44,3.88965274]
[1767486160916,4.00436674,134.51,134.44,3.88965274]
[1767486162019,0.05044403,134.49,134.44,3.88965274]
[1767486163123,4.05481077,134.49,134.44,0.050956]
[1767486164926,10.75001077,134.49,134.44,0.050956]
[1767486165830,4.00436674,134.48,134.44,0.050956]